fUST/lending_fUST_20240621
["ID","MTS","AMOUNT","RATE_DAILY","PERIOD"]
[330045517,1718967039691,-500.0,0.0003132,2]
[330045518,1718967039701,-1344.10915683,0.00031321,120]
[330045519,1718967039711,-140980.08887061,0.00031321,7]
[330045520,1718967039721,-263676.64227201,0.00031321,120]
[330045521,1718967039731,-62917.73771405,0.00031321,30]
[330045522,1718967039741,-4081.61695023,0.00031321,2]
[330045523,1718967039752,-606.18028627,0.00031321,30]
[330045524,1718967039763,-5821.23450015,0.00031321,2]
[330045525,1718967039774,-2550.72407127,0.00031321,2]
[330045526,1718967039784,-14743.84208548,0.00031321,2]
[330045527,1718967039794,-150.0,0.00031321,30]
[330045528,1718967039805,-150.0,0.00031321,30]
[330045529,1718967039815,-192.5,0.00031321,30]
[330045530,1718967039825,-153.479533,0.00031348,7]
[330045531,1718967039835,-277.18156,0.00031348,7]
[330045532,1718967039846,-1000.0,0.00031348,10]
[330045533,1718967039856,-1000.0,0.00031348,10]
[330045534,1718967039866,-1440.905037,0.00031348,7]
[330045535,1718967039876,-1440.905037,0.00031348,7]
[330045536,1718967039887,-1000.0,0.00031348,10]
[330045537,1718967039897,-1000.0,0.00031348,10]
[330045538,1718967039907,-1000.0,0.00031348,10]
[330045539,1718967039917,-1000.0,0.00031348,10]
[330045540,1718967039927,-1000.0,0.00031348,10]
[330045541,1718967039937,-1000.0,0.00031348,10]
[330045542,1718967039947,-1000.0,0.00031348,10]
[330045543,1718967039957,-1000.0,0.00031348,10]
[330045544,1718967039966,-1440.905037,0.00031348,7]
[330045545,1718967039977,-1000.0,0.00031348,10]
[330045546,1718967039987,-1440.905037,0.00031348,7]
[330045547,1718967039997,-1000.0,0.00031348,10]
[330045548,1718967040008,-1000.0,0.00031348,10]
[330045549,1718967040028,-1000.0,0.00031348,10]
[330045550,1718967040041,-1000.0,0.00031348,10]
[330045551,1718967040052,-1000.0,0.00031348,10]
[330045552,1718967040062,-1000.0,0.00031348,10]
[330045553,1718967040073,-1000.0,0.00031348,10]
[330045554,1718967040084,-1000.0,0.00031348,10]
[330045555,1718967040096,-1000.0,0.00031348,10]
[330045556,1718967040106,-1000.0,0.00031348,10]
[330045557,1718967040117,-1000.0,0.00031348,10]
[330045558,1718967040127,-632.783487,0.00031348,10]
[330045559,1718967040138,-151.0,0.00031348,7]
[330045560,1718967040148,-151.0,0.00031348,7]
[330045561,1718967040158,-151.0,0.00031348,7]
[330045562,1718967040169,-151.0,0.00031348,7]
[330045563,1718967040180,-151.0,0.00031348,7]
[330045564,1718967040190,-151.0,0.00031348,7]
[330045565,1718967040200,-151.0,0.00031348,7]
[330045566,1718967040210,-151.0,0.00031348,7]
[330045567,1718967040220,-155.211959,0.00031348,7]
[330045568,1718967040230,-437.942791,0.00031348,7]
[330045569,1718967040240,-437.942791,0.00031348,7]
[330045570,1718967040252,-437.942791,0.00031348,7]
[330045571,1718967040262,-437.942791,0.00031348,7]
[330045572,1718967040272,-437.942791,0.00031348,7]
[330045573,1718967040282,-437.942791,0.00031348,7]
[330045574,1718967040292,-151.0,0.00031348,7]
[330045575,1718967040303,-151.0,0.00031348,7]
[330045576,1718967040313,-151.0,0.00031348,7]
[330045577,1718967040324,-151.0,0.00031348,7]
[330045578,1718967040340,-151.677865,0.00031348,7]
[330045579,1718967040351,-151.0,0.00031348,7]
[330045580,1718967040362,-151.0,0.00031348,7]
[330045581,1718967040372,-151.0,0.00031348,7]
[330045582,1718967040384,-1191.540022,0.00031348,7]
[330045583,1718967040394,-1191.540022,0.00031348,7]
[330045584,1718967040405,-1191.540022,0.00031348,7]
[330045585,1718967040415,-321.298954,0.00031348,7]
[330045586,1718967040426,-1191.540022,0.00031348,7]
[330045587,1718967040438,-1191.540022,0.00031348,7]
[330045588,1718967040448,-1191.540022,0.00031348,7]
[330045589,1718967040458,-321.298954,0.00031348,7]
[330045590,1718967040469,-151.0,0.00031348,7]
[330045591,1718967040479,-151.0,0.00031348,7]
[330045592,1718967040489,-151.0,0.00031348,7]
[330045593,1718967040500,-151.0,0.00031348,7]
[330045594,1718967040510,-151.0,0.00031348,7]
[330045595,1718967040520,-151.0,0.00031348,7]
[330045596,1718967040530,-151.0,0.00031348,7]
[330045597,1718967040540,-151.0,0.00031348,7]
[330045598,1718967040550,-3086.639267,0.00031348,7]
[330045599,1718967040560,-3086.639267,0.00031348,7]
[330045600,1718967040570,-201.641449,0.00031348,7]
[330045601,1718967040579,-201.641449,0.00031348,7]
[330045602,1718967040589,-151.0,0.00031492,7]
[330045603,1718967040599,-151.0,0.00031492,7]
[330045604,1718967040609,-151.0,0.00031492,7]
[330045605,1718967040619,-151.0,0.00031492,7]
[330045606,1718967040629,-151.0,0.00031492,7]
[330045607,1718967040639,-151.0,0.00031492,7]
[330045608,1718967040649,-151.0,0.00031492,7]
[330045609,1718967040658,-151.0,0.00031492,7]
[330045610,1718967040668,-151.0,0.00031492,7]
[330045611,1718967040678,-151.0,0.00031492,7]
[330045612,1718967040688,-152.177565,0.00031492,7]
[330045613,1718967040697,-151.0,0.00031492,7]
[330045614,1718967040707,-151.0,0.00031492,7]
[330045615,1718967040717,-151.0,0.00031492,7]
[330045617,1718967040727,-151.0,0.00031492,7]
[330045619,1718967040736,-151.0,0.00031492,7]
[330045620,1718967040833,-151.0,0.00031492,7]
[330045621,1718967040846,-151.0,0.00031492,7]
[330045622,1718967040858,-151.0,0.00031492,7]
[330045623,1718967040868,-151.0,0.00031492,7]
[330045624,1718967040878,-151.0,0.00031492,7]
[330045625,1718967040888,-153.458489,0.00031492,7]
[330045626,1718967040899,-151.0,0.00031492,7]
[330045627,1718967040910,-321.298954,0.00031492,7]
[330045628,1718967040920,-321.298954,0.00031492,7]
[330045629,1718967040931,-151.0,0.00031492,7]
[330045630,1718967040940,-151.0,0.00031492,7]
[330045631,1718967040950,-151.0,0.00031492,7]
[330045632,1718967040960,-151.0,0.00031492,7]
[330045633,1718967040970,-1484.19889049,0.00031813,2]
[330045634,1718967040980,-20264.43416469,0.00034,2]
[330045635,1718967040993,-5000.0,0.00034,4]
[330045636,1718967041006,-3086.639267,0.00034,7]
[330045637,1718967041015,-3086.639267,0.00034,7]
[330045638,1718967041025,-201.641449,0.00034,7]
[330045639,1718967041035,-201.641449,0.00034,7]
[330045640,1718967041044,-160.54492292,0.00035043,2]
[330045641,1718967041054,-920.8576626,0.00036828,2]
[330045642,1718967041063,-159.23604542,0.00037322,4]
[330045643,1718967041073,-5274.4118793,0.00037503,2]
[330045644,1718967041083,-157.894497,0.00037652,2]
[330045645,1718967041092,-1000.0,0.000377,30]
[330045646,1718967041101,-252.0,0.000377,12]
[330045647,1718967041111,-320.5229805,0.00037746,2]
[330045648,1718967041120,-822.567184,0.0003779,30]
[330045649,1718967041130,-389876.65147976,0.000378,90]
[330045650,1718967041139,-597.0,0.000378,120]
[330045651,1718967041151,-151.0,0.000378,7]
[330045652,1718967041162,-151.0,0.000378,7]
[330045653,1718967041171,-151.0,0.000378,7]
[330045654,1718967041181,-151.0,0.000378,7]
[330045655,1718967041191,-151.0,0.000378,7]
[330045656,1718967041201,-151.0,0.000378,7]
[330045657,1718967041211,-151.0,0.000378,7]
[330045658,1718967041222,-151.0,0.000378,7]
[330045659,1718967041232,-151.0,0.000378,7]
[330045660,1718967041241,-1440.905037,0.000378,7]
[330045661,1718967041252,-1440.905037,0.000378,7]
[330045662,1718967041261,-151.0,0.000378,7]
[330045663,1718967041271,-151.0,0.000378,7]
[330045664,1718967041280,-437.942791,0.000378,7]
[330045665,1718967041289,-437.942791,0.000378,7]
[330045668,1718967041299,-151.0,0.000378,7]
[330045671,1718967041309,-151.0,0.000378,7]
[330045673,1718967041319,-151.0,0.000378,7]
[330045675,1718967041329,-151.0,0.000378,7]
[330045677,1718967041341,-1191.540022,0.000378,7]
[330045679,1718967041354,-321.298954,0.000378,7]
[330045680,1718967041363,-1191.540022,0.000378,7]
[330045681,1718967041373,-321.298954,0.000378,7]
[330045682,1718967041382,-151.0,0.000378,7]
[330045683,1718967041391,-151.0,0.000378,7]
[330045684,1718967041400,-151.0,0.000378,7]
[330045685,1718967041410,-3086.639267,0.000378,7]
[330045686,1718967041420,-3086.639267,0.000378,7]
[330045687,1718967041431,-660.996608,0.000378,7]
[330045688,1718967041441,-201.641449,0.000378,7]
[330045689,1718967041451,-201.641449,0.000378,7]
[330045690,1718967041460,-660.996608,0.000378,7]
[330045691,1718967041470,-151.0,0.000378,7]
[330045692,1718967041479,-1137.036381,0.000378,7]
[330045693,1718967041488,-1137.036381,0.000378,7]
[330045694,1718967041499,-536.14982021,0.00038,120]
[330045695,1718967041508,-154.76012181,0.00038524,4]
[330045696,1718967041518,-4527.49804865,0.00039,60]
[330045697,1718967041528,-155.28841985,0.0003959,4]
[330045698,1718967041538,-1484.19889049,0.00039828,2]
[330045699,1718967041548,-300.0,0.0004,120]
[330045700,1718967041558,-154.9180638,0.00040259,4]
[330045701,1718967041568,-273.84985115,0.00040259,4]
[330045702,1718967041578,-155.61772662,0.00040259,4]
[330045703,1718967041587,-200.0,0.0004026,120]
[330045704,1718967041597,-804.91298822,0.00040822,4]
[330045705,1718967041610,-810.56243048,0.00040822,4]
[330045706,1718967041620,-205.34678634,0.00041157,4]
[330045707,1718967041629,-216.743744,0.00041416,2]
[330045708,1718967041638,-150.0,0.00042166,60]
[330045709,1718967041647,-6357.4,0.000428,60]
[330045710,1718967041656,-40683.00830213,0.000428,60]
[330045711,1718967041664,-1484.81680543,0.000428,60]
[330045712,1718967041673,-5621.43974818,0.000428,60]
[330045713,1718967041682,-150.0,0.00043166,60]
[330045714,1718967041691,-155.83004725,0.00043264,4]
[330045715,1718967041699,-151.0,0.00043999,14]
[330045716,1718967041708,-151.0,0.00043999,14]
[330045717,1718967041717,-151.0,0.00043999,14]
[330045718,1718967041726,-3086.639267,0.00043999,14]
[330045719,1718967041735,-3086.639267,0.00043999,14]
[330045720,1718967041744,-201.641449,0.00043999,14]
[330045721,1718967041757,-201.641449,0.00043999,14]
[330045722,1718967041766,-500.0,0.00044,5]
[330045723,1718967041775,-93297.44905016,0.00044,10]
[330045724,1718967041788,-200.0,0.00044,120]
[330045725,1718967041797,-1000.0,0.00044,44]
[330045726,1718967041806,-151.0,0.00044,14]
[330045727,1718967041815,-16609.61198428,0.00044,120]
[330045728,1718967041824,-151.0,0.00044,14]
[330045729,1718967041833,-151.0,0.00044,14]
[330045730,1718967041843,-151.0,0.00044,14]
[330045731,1718967041852,-151.0,0.00044,14]
[330045732,1718967041861,-151.0,0.00044,14]
[330045733,1718967041872,-151.0,0.00044,14]
[330045734,1718967041882,-151.0,0.00044,14]
[330045736,1718967041892,-151.0,0.00044,14]
[330045738,1718967041967,-1440.905037,0.00044,14]
[330045740,1718967041976,-1440.905037,0.00044,14]
[330045741,1718967041985,-151.0,0.00044,14]
[330045742,1718967041995,-158.102487,0.00044,14]
[330045743,1718967042008,-437.942791,0.00044,14]
[330045744,1718967042017,-437.942791,0.00044,14]
[330045745,1718967042027,-151.0,0.00044,14]
[330045746,1718967042036,-151.0,0.00044,14]
[330045747,1718967042046,-151.0,0.00044,14]
[330045748,1718967042055,-151.0,0.00044,14]
[330045749,1718967042064,-1191.540022,0.00044,14]
[330045750,1718967042073,-321.298954,0.00044,14]
[330045751,1718967042083,-1191.540022,0.00044,14]
[330045752,1718967042092,-321.298954,0.00044,14]
[330045753,1718967042101,-151.0,0.00044,14]
[330045754,1718967042110,-151.0,0.00044,14]
[330045755,1718967042119,-151.0,0.00044,14]
[330045756,1718967042128,-3086.639267,0.00044,14]
[330045757,1718967042138,-3086.639267,0.00044,14]
[330045758,1718967042147,-660.996608,0.00044,14]
[330045759,1718967042156,-201.641449,0.00044,14]
[330045760,1718967042165,-660.996608,0.00044,14]
[330045761,1718967042174,-201.641449,0.00044,14]
[330045762,1718967042183,-151.0,0.00044,14]
[330045763,1718967042192,-1137.036381,0.00044,14]
[330045764,1718967042201,-1137.036381,0.00044,14]
[330045765,1718967042210,-150.0,0.00044166,60]
[330045766,1718967042231,-153.0,0.0004455,30]
[330045767,1718967042242,-153.0,0.0004455,30]
[330045768,1718967042253,-153.0,0.0004455,30]
[330045769,1718967042262,-153.0,0.0004455,30]
[330045770,1718967042272,-153.0,0.0004455,30]
[330045771,1718967042282,-153.0,0.0004455,30]
[330045772,1718967042292,-154.76012181,0.00044785,4]
[330045773,1718967042302,-755.63899459,0.00044999,4]
[330045774,1718967042312,-517.49692463,0.00044999,4]
[330045775,1718967042322,-63252.04296592,0.00045,120]
[330045776,1718967042331,-500.0,0.00045,6]
[330045777,1718967042347,-106636.60099575,0.00045,120]
[330045778,1718967042357,-159.57116,0.00045,14]
[330045779,1718967042367,-769.75676566,0.00045,120]
[330045780,1718967042377,-151.0,0.00045,14]
[330045781,1718967042388,-151.0,0.00045,14]
[330045782,1718967042399,-165.353781,0.00045,14]
[330045783,1718967042410,-151.0,0.00045,14]
[330045784,1718967042421,-151.0,0.00045,14]
[330045785,1718967042432,-151.0,0.00045,14]
[330045786,1718967042444,-161.587946,0.00045,14]
[330045787,1718967042454,-151.0,0.00045,14]
[330045788,1718967042464,-151.0,0.00045,14]
[330045789,1718967042475,-151.0,0.00045,14]
[330045790,1718967042484,-151.0,0.00045,14]
[330045791,1718967042494,-1440.905037,0.00045,14]
[330045792,1718967042506,-1440.905037,0.00045,14]
[330045793,1718967042516,-1440.905037,0.00045,14]
[330045794,1718967042526,-1440.905037,0.00045,14]
[330045795,1718967042537,-151.0,0.00045,14]
[330045796,1718967042547,-151.0,0.00045,14]
[330045797,1718967042556,-437.942791,0.00045,14]
[330045798,1718967042566,-437.942791,0.00045,14]
[330045799,1718967042576,-437.942791,0.00045,14]
[330045800,1718967042586,-437.942791,0.00045,14]
[330045801,1718967042596,-151.0,0.00045,14]
[330045802,1718967042606,-151.0,0.00045,14]
[330045803,1718967042615,-151.0,0.00045,14]
[330045804,1718967042626,-151.0,0.00045,14]
[330045805,1718967042636,-151.0,0.00045,14]
[330045806,1718967042646,-151.0,0.00045,14]
[330045807,1718967042656,-1191.540022,0.00045,14]
[330045808,1718967042666,-1191.540022,0.00045,14]
[330045809,1718967042676,-321.298954,0.00045,14]
[330045810,1718967042686,-321.298954,0.00045,14]
[330045811,1718967042695,-1191.540022,0.00045,14]
[330045812,1718967042705,-1191.540022,0.00045,14]
[330045813,1718967042716,-321.298954,0.00045,14]
[330045814,1718967042726,-321.298954,0.00045,14]
[330045815,1718967042736,-151.0,0.00045,14]
[330045816,1718967042747,-151.0,0.00045,14]
[330045817,1718967042758,-151.0,0.00045,14]
[330045818,1718967042768,-151.0,0.00045,14]
[330045819,1718967042778,-151.0,0.00045,14]
[330045820,1718967042788,-3086.639267,0.00045,14]
[330045821,1718967042797,-3086.639267,0.00045,14]
[330045822,1718967042807,-660.996608,0.00045,14]
[330045823,1718967042817,-660.996608,0.00045,14]
[330045824,1718967042826,-201.641449,0.00045,14]
[330045825,1718967042836,-660.996608,0.00045,14]
[330045826,1718967042845,-660.996608,0.00045,14]
[330045827,1718967042855,-157.602151,0.00045,14]
[330045828,1718967042865,-201.641449,0.00045,14]
[330045829,1718967042874,-1137.036381,0.00045,14]
[330045830,1718967042884,-1137.036381,0.00045,14]
[330045831,1718967042893,-1137.036381,0.00045,14]
[330045832,1718967042903,-1137.036381,0.00045,14]
[330045833,1718967042913,-166.760716,0.00045005,2]
[330045834,1718967042923,-157.894497,0.0004593,2]
[330045835,1718967042932,-866.55,0.00046,120]
[330045836,1718967042942,-940.026339,0.00046575,14]
[330045837,1718967042951,-940.026339,0.00046575,14]
[330045838,1718967043041,-1376.05250197,0.00046585,30]
[330045839,1718967043051,-969.7239761,0.00046601,30]
[330045840,1718967043060,-969.7239761,0.00046606,30]
[330045841,1718967043070,-501.0,0.00046715,2]
[330045842,1718967043079,-151.064,0.00046715,2]
[330045843,1718967043088,-1752.0,0.00046715,2]
[330045844,1718967043097,-150.506,0.00046715,2]
[330045845,1718967043107,-150.96651356,0.00046859,30]
[330045846,1718967043116,-200.0,0.00046951,120]
[330045847,1718967043125,-150.96651356,0.00046973,30]
[330045848,1718967043135,-1376.05250197,0.00046995,30]
[330045849,1718967043144,-223.0,0.00047,90]
[330045850,1718967043154,-168.6,0.00047053,60]
[330045851,1718967043163,-934.31504815,0.00047078,30]
[330045852,1718967043173,-1376.05250197,0.00047124,30]
[330045853,1718967043183,-934.31504815,0.00047177,30]
[330045854,1718967043192,-969.7239761,0.00047268,30]
[330045855,1718967043202,-969.7239761,0.00047356,30]
[330045856,1718967043212,-969.7239761,0.00047443,30]
[330045857,1718967043222,-969.7239761,0.00047518,30]
[330045858,1718967043231,-335.3,0.00047564,60]
[330045859,1718967043241,-934.31504815,0.00047605,30]
[330045860,1718967043254,-969.7239761,0.00047628,30]
[330045861,1718967043265,-1376.05250197,0.00047798,30]
[330045862,1718967043275,-179.0,0.00047808,30]
[330045863,1718967043284,-1484.19889049,0.00047842,28]
[330045864,1718967043294,-200.0,0.00047906,120]
[330045865,1718967043305,-154.24002068,0.00047951,30]
[330045866,1718967043316,-150.96651356,0.00047981,30]
[330045867,1718967043326,-58551.808013,0.00048,120]
[330045868,1718967043337,-244.633128,0.00048,14]
[330045869,1718967043351,-151.0,0.00048,14]
[330045870,1718967043360,-151.0,0.00048,14]
[330045871,1718967043370,-1440.905037,0.00048,14]
[330045872,1718967043380,-1440.905037,0.00048,14]
[330045873,1718967043391,-151.0,0.00048,14]
[330045874,1718967043400,-437.942791,0.00048,14]
[330045875,1718967043409,-437.942791,0.00048,14]
[330045876,1718967043419,-154.732091,0.00048,14]
[330045877,1718967043429,-151.0,0.00048,14]
[330045878,1718967043440,-256.481926,0.00048,14]
[330045879,1718967043449,-1191.540022,0.00048,14]
[330045880,1718967043459,-321.298954,0.00048,14]
[330045881,1718967043469,-1191.540022,0.00048,14]
[330045882,1718967043479,-321.298954,0.00048,14]
[330045883,1718967043491,-296.522,0.00048,14]
[330045884,1718967043518,-151.0,0.00048,14]
[330045885,1718967043535,-3086.639267,0.00048,14]
[330045886,1718967043553,-3086.639267,0.00048,14]
[330045887,1718967043576,-660.996608,0.00048,14]
[330045888,1718967043595,-201.641449,0.00048,14]
[330045889,1718967043612,-660.996608,0.00048,14]
[330045890,1718967043632,-201.641449,0.00048,14]
[330045891,1718967043647,-1137.036381,0.00048,14]
[330045892,1718967043665,-1137.036381,0.00048,14]
[330045893,1718967043685,-940.026339,0.00048043,14]
[330045894,1718967043705,-940.026339,0.00048043,14]
[330045895,1718967043718,-151.0,0.00048043,14]
[330045896,1718967043736,-934.31504815,0.00048047,30]
[330045897,1718967043752,-335.3,0.00048076,60]
[330045898,1718967043769,-154.24002068,0.00048152,30]
[330045899,1718967043782,-934.31504815,0.00048196,30]
[330045900,1718967043801,-150.96651356,0.00048242,30]
[330045901,1718967043817,-95376.74060568,0.0004826,2]
[330045902,1718967043831,-940.026339,0.0004826,14]
[330045903,1718967043847,-940.026339,0.0004826,14]
[330045904,1718967043863,-257.252587,0.0004826,14]
[330045905,1718967043879,-151.0,0.0004826,14]
[330045906,1718967043893,-151.0,0.0004826,14]
[330045910,1718967043908,-1440.905037,0.0004826,14]
[330045915,1718967043922,-1440.905037,0.0004826,14]
[330045919,1718967043937,-151.0,0.0004826,14]
[330045920,1718967043951,-437.942791,0.0004826,14]
[330045921,1718967043966,-437.942791,0.0004826,14]
[330045922,1718967043981,-2237.227324,0.0004826,14]
[330045923,1718967043995,-151.0,0.0004826,14]
[330045924,1718967044011,-1191.540022,0.0004826,14]
[330045925,1718967044026,-321.298954,0.0004826,14]
[330045926,1718967044041,-1191.540022,0.0004826,14]
[330045927,1718967044056,-321.298954,0.0004826,14]
[330045928,1718967044070,-151.0,0.0004826,14]
[330045929,1718967044085,-3086.639267,0.0004826,14]
[330045930,1718967044100,-3086.639267,0.0004826,14]
[330045931,1718967044114,-660.996608,0.0004826,14]
[330045932,1718967044128,-201.641449,0.0004826,14]
[330045933,1718967044143,-660.996608,0.0004826,14]
[330045934,1718967044158,-201.641449,0.0004826,14]
[330045935,1718967044172,-1137.036381,0.0004826,14]
[330045936,1718967044186,-1137.036381,0.0004826,14]
[330045937,1718967044200,-1376.05250197,0.00048305,30]
[330045938,1718967044210,-934.31504815,0.00048322,30]
[330045939,1718967044323,-969.7239761,0.00048372,30]
[330045940,1718967044341,-969.7239761,0.00048404,30]
[330045941,1718967044351,-934.31504815,0.00048514,30]
[330045942,1718967044362,-335.3,0.00048587,60]
[330045943,1718967044372,-152.0,0.00048587,60]
[330045944,1718967044382,-150.96651356,0.00048609,30]
[330045945,1718967044392,-934.31504815,0.00048722,30]
[330045946,1718967044401,-150.96651356,0.00048739,30]
[330045947,1718967044411,-150.96651356,0.00048759,30]
[330045948,1718967044423,-150.75878594,0.00048776,2]
[330045949,1718967044432,-934.31504815,0.00048932,30]
[330045950,1718967044442,-1376.05250197,0.00048937,30]
[330045951,1718967044451,-2076.6970503,0.00049005,2]
[330045952,1718967044463,-2076.6970503,0.00049005,2]
[330045953,1718967044472,-2076.6970503,0.00049005,2]
[330045954,1718967044482,-2076.6970503,0.00049005,2]
[330045955,1718967044492,-2076.6970503,0.00049005,2]
[330045956,1718967044502,-2076.6970503,0.00049005,2]
[330045957,1718967044511,-2076.6970503,0.00049005,2]
[330045958,1718967044520,-2076.6970503,0.00049005,2]
[330045959,1718967044530,-2076.6970503,0.00049005,2]
[330045960,1718967044539,-2076.6970503,0.00049005,2]
[330045961,1718967044548,-1376.05250197,0.00049023,30]
[330045962,1718967044558,-934.31504815,0.00049029,30]
[330045963,1718967044567,-1376.05250197,0.00049047,30]
[330045964,1718967044576,-335.3,0.00049099,60]
[330045965,1718967044586,-152.0,0.00049099,60]
[330045967,1718967044595,-150.96651356,0.00049108,30]
[330045968,1718967044605,-934.31504815,0.00049303,30]
[330045969,1718967044615,-500.0,0.00049315,30]
[330045970,1718967044624,-969.7239761,0.00049332,30]
[330045971,1718967044633,-150.96651356,0.00049356,30]
[330045972,1718967044643,-969.7239761,0.00049366,30]
[330045973,1718967044652,-154.24002068,0.00049391,30]
[330045974,1718967044662,-154.24002068,0.00049402,30]
[330045975,1718967044671,-934.31504815,0.00049531,30]
[330045976,1718967044680,-1376.05250197,0.00049535,30]
[330045977,1718967044690,-301.51757188,0.00049596,4]
[330045978,1718967044699,-335.3,0.00049611,60]
[330045979,1718967044708,-152.0,0.00049611,60]
[330045980,1718967044717,-150.96651356,0.00049683,30]
[330045981,1718967044727,-150.96651356,0.00049706,30]
[330045982,1718967044736,-501.0,0.00049715,2]
[330045983,1718967044745,-150.0,0.00049715,2]
[330045984,1718967044756,-1752.0,0.00049715,2]
[330045985,1718967044766,-934.31504815,0.00049734,30]
[330045986,1718967044779,-1376.05250197,0.00049755,30]
[330045987,1718967044788,-310.90568047,0.00049889,4]
[330045988,1718967044798,-969.7239761,0.00049953,30]
[330045989,1718967044807,-151.0,0.00049999,14]
[330045990,1718967044817,-321.298954,0.00049999,14]
[330045991,1718967044827,-321.298954,0.00049999,14]
[330045992,1718967044837,-300.0,0.0005,120]
[330045993,1718967044846,-20000.0,0.0005,120]
[330045994,1718967044856,-14600.94554957,0.0005,2]
[330045995,1718967044866,-150.0,0.0005,41]
[330045996,1718967044876,-10000.0,0.0005,70]
[330045997,1718967044885,-24008.3600992,0.0005,120]
[330045998,1718967044895,-4298.34006786,0.0005,60]
[330045999,1718967044904,-940.026339,0.0005,14]
[330046000,1718967044914,-940.026339,0.0005,14]
[330046001,1718967044923,-2000.0,0.0005,2]
[330046002,1718967044932,-151.0,0.0005,14]
[330046003,1718967044941,-234.857076,0.0005,14]
[330046004,1718967044950,-1440.905037,0.0005,14]
[330046005,1718967044959,-1440.905037,0.0005,14]
[330046006,1718967044969,-437.942791,0.0005,14]
[330046007,1718967044978,-437.942799,0.0005,14]
[330046008,1718967044987,-2237.227318,0.0005,14]
[330046009,1718967044996,-151.0,0.0005,14]
[330046010,1718967045009,-1191.540022,0.0005,14]
[330046011,1718967045018,-321.298954,0.0005,14]
[330046012,1718967045027,-1191.540029,0.0005,14]
[330046013,1718967045036,-321.298948,0.0005,14]
[330046014,1718967045045,-3086.639267,0.0005,14]
[330046015,1718967045054,-3086.639267,0.0005,14]
[330046016,1718967045063,-660.996608,0.0005,14]
[330046017,1718967045072,-201.641449,0.0005,14]
[330046018,1718967045082,-660.996608,0.0005,14]
[330046019,1718967045091,-201.641449,0.0005,14]
[330046020,1718967045100,-1137.036381,0.0005,14]
[330046021,1718967045109,-1137.036381,0.0005,14]
[330046022,1718967045119,-1376.05250197,0.00050012,60]
[330046023,1718967045127,-335.3,0.00050122,60]
[330046024,1718967045137,-152.0,0.00050122,60]
[330046025,1718967045146,-969.7239761,0.00050127,60]
[330046026,1718967045155,-150.0,0.00050155,120]
[330046027,1718967045164,-1376.05250197,0.00050248,60]
[330046028,1718967045173,-934.31504815,0.00050399,60]
[330046029,1718967045183,-969.7239761,0.00050495,60]
[330046030,1718967045192,-1376.05250197,0.00050579,60]
[330046031,1718967045201,-1376.05250197,0.00050586,60]
[330046032,1718967045210,-150.96651356,0.00050603,60]
[330046033,1718967045220,-335.3,0.00050634,60]
[330046034,1718967045229,-152.0,0.00050634,60]
[330046035,1718967045239,-934.31504815,0.00050656,60]
[330046036,1718967045250,-1500.0,0.00050684,120]
[330046037,1718967045263,-150.96651356,0.00050732,60]
[330046038,1718967045272,-1500.0,0.00050958,120]
[330046039,1718967045281,-253.8013263,0.00050999,4]
[330046040,1718967045292,-4036.91135218,0.00051,30]